bitfinex-derivatives/quotes_SOLF0:USTF0_20250516
["timestamp","ask_amount","ask_price","bid_price","bid_amount"]
[1747386060339,61.76,170.27,170.22,61.78]
[1747386060839,61.76,170.27,170.22,67.6532]
[1747386061040,61.76,170.27,170.22,61.78]
[1747386061341,5.8722,170.26,170.23,5.8728]
[1747386061836,5.8722,170.26,170.22,61.78]
[1747386062938,5.8724,170.25,170.22,61.78]
[1747386063136,5.8724,170.25,170.22,67.6531]
[1747386063542,5.8721,170.26,170.23,5.873]
[1747386063943,61.78,170.29,170.22,61.78]
[1747386064145,61.7,170.29,170.22,61.78]
[1747386064334,61.7,170.29,170.22,63.7312]
[1747386064536,61.7,170.31,170.22,63.7312]
[1747386064735,61.78,170.33,170.24,6.99509416]
[1747386064938,61.7,170.31,170.24,6.99509416]
[1747386065438,61.7,170.31,170.23,2.0091]
[1747386065636,5.8718,170.27,170.23,2.0091]
[1747386066035,5.8718,170.27,170.24,5.8724]
[1747386066739,5.8714,170.28,170.25,5.8723]
[1747386066934,61.7,170.32,170.23,63.7091]
[1747386067138,1.9614,170.35,170.26,6.99509416]
[1747386067338,61.7,170.34,170.27,61.78]
[1747386067639,63.7912,170.37,170.27,61.78]
[1747386067836,61.68,170.36,170.27,61.78]
[1747386068036,61.68,170.36,170.28,1.9929]
[1747386068241,5.8698,170.33,170.3,5.8704]
[1747386068538,63.7912,170.37,170.29,6.99509416]
[1747386068742,5.8694,170.34,170.31,5.87]
[1747386069239,5.8694,170.34,170.29,6.99509416]
[1747386069436,5.8694,170.34,170.3,5.8704]
[1747386069744,61.68,170.36,170.28,1.9929]
[1747386070138,1.829,170.4,170.28,1.9929]
[1747386070438,61.76,170.4,170.32,5.8696]
[1747386070642,61.68,170.39,170.32,5.8696]
[1747386070847,5.8687,170.36,170.32,5.8696]
[1747386071044,61.68,170.39,170.32,5.8696]
[1747386071244,5.8687,170.36,170.33,5.8695]
[1747386071545,61.68,170.39,170.31,61.76]
[1747386071946,5.8687,170.36,170.33,5.8694]
[1747386072844,61.76,170.4,170.31,61.76]
[1747386073035,5.8679,170.38,170.35,5.8686]
[1747386073239,61.76,170.4,170.32,6.99509416]
[1747386073642,61.76,170.43,170.32,6.99509416]
[1747386073841,61.66,170.42,170.32,6.99509416]
[1747386074039,5.8675,170.39,170.35,5.8688]
[1747386074240,61.66,170.42,170.35,5.8688]
[1747386074439,61.76,170.43,170.35,5.8688]
[1747386074642,5.8678,170.39,170.35,5.8688]
[1747386074847,61.64,170.41,170.34,5.8691]
[1747386075248,61.64,170.41,170.32,6.99509416]
[1747386075450,61.64,170.41,170.32,12.86489416]
[1747386075747,5.8686,170.36,170.32,6.99509416]
[1747386076552,5.8686,170.36,170.33,5.8694]
[1747386076746,5.8682,170.37,170.32,6.99509416]
[1747386077050,61.64,170.41,170.32,6.99509416]
[1747386077249,5.8685,170.37,170.33,5.8693]
[1747386078343,5.8685,170.37,170.34,5.8692]
[1747386078544,5.8685,170.37,170.32,6.99509416]
[1747386078850,5.8685,170.36,170.32,6.99509416]
[1747386079351,5.8683,170.37,170.33,5.8693]
[1747386079651,5.8683,170.37,170.32,6.99509416]
[1747386079851,5.8685,170.36,170.33,5.8694]
[1747386080245,61.62,170.4,170.32,6.99509416]
[1747386080445,5.869,170.35,170.32,6.99509416]
[1747386080946,61.62,170.4,170.31,123.42]
[1747386081152,61.62,170.39,170.29,61.62]
[1747386081351,3.9728,170.38,170.29,61.62]
[1747386082256,5.8704,170.31,170.29,61.62]
[1747386082450,61.6,170.35,170.29,61.62]
[1747386083042,61.6,170.35,170.26,61.62]
[1747386083241,5.8715,170.28,170.23,61.62]
[1747386083441,61.6,170.3,170.23,61.62]
[1747386083749,61.6,170.3,170.23,67.4926]
[1747386084352,5.8713,170.28,170.23,67.4926]
[1747386084650,61.6,170.3,170.23,61.62]
[1747386085753,123.22,170.3,170.23,61.62]
[1747386085952,3.813,170.29,170.21,5.8736]
[1747386086143,5.8728,170.24,170.21,5.8736]
[1747386086349,61.6,170.26,170.19,61.62]
[1747386086950,61.6,170.26,170.2,5.8739]
[1747386087149,5.8728,170.24,170.2,5.8739]
[1747386087352,61.6,170.26,170.19,61.62]
[1747386087559,61.6,170.26,170.22,5.8733]
[1747386088160,67.4721,170.26,170.23,5.8729]
[1747386088354,67.4721,170.26,170.19,61.62]
[1747386088355,61.6,170.26,170.19,61.62]
[1747386088963,61.6,170.26,170.21,5.8736]
[1747386089259,61.6,170.26,170.19,61.62]
[1747386090458,5.8727,170.24,170.19,61.62]
[1747386090660,61.6,170.26,170.19,61.62]
[1747386090857,61.6,170.26,170.2,6.99509416]
[1747386091055,123.22,170.3,170.2,6.99509416]
[1747386091355,123.22,170.3,170.23,6.99509416]
[1747386091564,129.0908,170.3,170.27,5.8714]
[1747386091956,67.4908,170.3,170.27,5.8714]
[1747386092259,123.2,170.3,170.23,68.63509416]
[1747386092852,61.58,170.3,170.23,68.63509416]
[1747386093358,67.4506,170.3,170.23,68.63509416]
[1747386093749,61.58,170.3,170.23,68.63509416]
[1747386093950,5.871,170.29,170.25,5.8722]
[1747386095357,61.58,170.3,170.25,5.8722]
[1747386095962,5.871,170.29,170.25,5.8722]
[1747386096268,5.871,170.29,170.26,5.8719]
[1747386097759,5.8713,170.28,170.25,5.8722]
[1747386097967,61.58,170.3,170.23,68.63509416]
[1747386098259,61.58,170.3,170.23,61.64]
[1747386098466,61.58,170.3,170.25,5.8721]
[1747386098666,61.58,170.3,170.23,61.64]
[1747386098862,5.8719,170.27,170.23,67.5127]
[1747386099166,61.58,170.3,170.23,67.5127]
[1747386099465,5.8721,170.26,170.23,67.5127]
[1747386101471,5.8717,170.27,170.23,61.64]
[1747386101868,5.8715,170.28,170.25,5.8721]
[1747386102068,5.8715,170.28,170.23,61.64]
[1747386102069,61.58,170.3,170.23,61.64]
[1747386102570,61.64,170.29,170.19,63.5878]
[1747386102773,61.64,170.29,170.19,61.64]
[1747386104278,5.8732,170.23,170.2,5.8738]
[1747386104481,61.56,170.25,170.19,61.64]
[1747386104876,5.8732,170.23,170.2,5.8739]
[1747386105078,61.56,170.25,170.19,61.64]
[1747386106476,5.8732,170.23,170.2,5.8739]
[1747386106982,5.8734,170.22,170.19,67.5142]
[1747386108078,5.8737,170.21,170.19,61.64]
[1747386108381,61.56,170.25,170.19,61.64]
[1747386109878,5.8732,170.23,170.2,5.8737]
[1747386112178,5.8727,170.24,170.21,5.8736]
[1747386112576,61.64,170.29,170.19,61.64]
[1747386112775,5.8721,170.26,170.23,5.8728]
[1747386112974,61.54,170.28,170.19,61.64]
[1747386113482,5.8725,170.25,170.22,5.8732]
[1747386114182,5.872,170.26,170.23,5.8728]
[1747386114383,61.54,170.28,170.2,6.99509416]
[1747386114584,516.07099416,170.34,170.2,68.51509416]
[1747386114787,5.8707,170.3,170.27,5.8714]
[1747386114984,61.54,170.33,170.25,61.54]
[1747386115185,61.52,170.32,170.25,61.54]
[1747386115382,67.3902,170.32,170.25,61.54]
[1747386115886,61.52,170.32,170.25,61.54]
[1747386116080,123.06,170.32,170.22,61.54]
[1747386116388,5.8718,170.27,170.24,5.8725]
[1747386116586,5.8718,170.27,170.22,61.54]
[1747386116786,123.06,170.32,170.22,61.54]
[1747386117086,5.8716,170.27,170.24,5.8725]
[1747386118582,5.872,170.26,170.23,5.8729]
[1747386118774,61.52,170.28,170.2,6.99509416]
[1747386118979,61.52,170.27,170.2,61.54]
[1747386119180,61.5,170.27,170.2,61.54]
[1747386119790,5.8725,170.25,170.22,5.8731]
[1747386119989,61.5,170.27,170.2,61.54]
[1747386120489,61.5,170.27,170.24,5.8726]
[1747386120988,61.5,170.27,170.2,68.53509416]
[1747386121183,61.5,170.27,170.2,61.54]
[1747386121491,5.873,170.23,170.2,67.4137]
[1747386121791,5.873,170.23,170.2,61.54]
[1747386122192,5.873,170.23,170.2,67.4139]
[1747386122793,5.873,170.23,170.21,5.8736]
[1747386122993,5.873,170.23,170.2,61.54]
[1747386123194,61.5,170.27,170.2,61.54]
[1747386123394,61.5,170.27,170.23,5.873]
[1747386123796,67.3717,170.27,170.2,68.53509416]
[1747386124000,61.5,170.27,170.2,68.53509416]
[1747386124292,5.8721,170.26,170.2,68.53509416]
[1747386124503,61.5,170.27,170.24,5.8725]
[1747386125192,61.5,170.27,170.2,68.53509416]
[1747386125398,61.54,170.32,170.21,4.0019]
[1747386125602,5.8713,170.28,170.21,4.0019]
[1747386125801,61.5,170.3,170.21,65.4819]
[1747386126100,5.8714,170.28,170.21,65.4819]
[1747386126300,5.8714,170.28,170.25,5.872]
[1747386126694,61.48,170.3,170.24,5.8724]
[1747386127203,5.8717,170.27,170.24,5.8724]
[1747386127601,61.48,170.3,170.25,5.8722]
[1747386127900,61.48,170.3,170.21,65.4819]
[1747386128102,61.54,170.35,170.28,5.871]
[1747386128298,5.8701,170.32,170.28,5.871]
[1747386128494,61.48,170.33,170.26,6.99509416]
[1747386128699,61.48,170.34,170.26,6.99509416]
[1747386128898,61.54,170.35,170.26,6.99509416]
[1747386129098,61.48,170.34,170.27,1.8747]
[1747386129300,61.48,170.34,170.27,3.8317]
[1747386129692,5.8698,170.33,170.29,5.8706]
[1747386129892,61.48,170.34,170.29,5.8706]
[1747386130107,61.48,170.34,170.27,3.8317]
[1747386131006,5.8699,170.32,170.28,5.871]
[1747386131201,61.48,170.34,170.28,5.871]
[1747386131604,5.8696,170.33,170.3,5.8703]
[1747386132305,67.3293,170.34,170.31,5.8702]
[1747386132807,5.8689,170.35,170.32,5.8698]
[1747386133202,61.54,170.38,170.29,61.54]
[1747386133407,61.46,170.37,170.29,68.53509416]
[1747386133606,5.8687,170.36,170.33,5.8693]
[1747386134409,5.8687,170.36,170.32,5.8697]
[1747386134606,5.8689,170.35,170.32,5.8697]
[1747386135414,5.8706,170.3,170.26,61.54]
[1747386135913,61.44,170.34,170.26,68.53509416]
[1747386136105,61.44,170.37,170.29,6.99509416]
[1747386136411,61.44,170.37,170.3,61.52]
[1747386136603,5.8689,170.35,170.31,5.87]
[1747386137713,5.8692,170.34,170.31,5.87]
[1747386138608,5.8695,170.33,170.3,67.3904]
[1747386138810,61.44,170.37,170.3,67.3904]
[1747386139833,61.44,170.37,170.3,61.52]
[1747386140243,5.869,170.35,170.31,5.8699]
[1747386140433,5.869,170.35,170.3,61.52]
[1747386140627,61.44,170.37,170.3,61.52]
[1747386140828,5.8687,170.36,170.33,5.8695]
[1747386142422,5.8683,170.37,170.33,5.8695]
[1747386143310,5.8678,170.39,170.3,61.52]
[1747386143518,5.8678,170.39,170.32,6.99509416]
[1747386143810,5.8673,170.4,170.32,6.99509416]
[1747386144011,61.4,170.41,170.32,68.39509416]
[1747386144212,61.4,170.41,170.36,5.8682]
[1747386144412,122.82,170.42,170.35,61.4]
[1747386144611,374.19884286,170.44,170.35,61.4]
[1747386144807,5.8662,170.43,170.39,5.8672]
[1747386145012,5.8662,170.43,170.39,61.4]
[1747386145717,374.19884286,170.44,170.4,5.8671]
[1747386145917,374.19884286,170.44,170.39,61.4]
[1747386146122,435.59884286,170.44,170.34,61.4]
[1747386146605,5.868,170.38,170.34,61.4]
[1747386146806,61.4,170.42,170.34,61.4]
[1747386147011,5.8677,170.39,170.35,5.8686]
[1747386147207,61.4,170.42,170.34,61.4]
[1747386147721,5.8683,170.37,170.34,61.4]
[1747386147914,61.4,170.42,170.34,61.4]
[1747386148420,5.8679,170.38,170.34,61.4]
[1747386148617,61.4,170.42,170.34,61.4]
[1747386148921,5.8672,170.4,170.36,5.8684]
[1747386149331,5.8672,170.4,170.37,5.8681]
[1747386149525,5.8669,170.41,170.34,61.4]
[1747386149727,5.8669,170.41,170.37,5.8679]
[1747386149926,61.38,170.43,170.37,5.8679]
[1747386150330,5.8671,170.4,170.37,5.8679]
[1747386150632,61.38,170.43,170.34,61.4]
[1747386150831,5.8665,170.42,170.34,61.4]
[1747386151035,5.8665,170.42,170.38,5.8675]
[1747386151333,5.8665,170.42,170.38,67.2675]
[1747386151526,61.38,170.43,170.38,61.4]
[1747386152130,5.8674,170.4,170.38,61.4]
[1747386153837,5.8675,170.39,170.38,61.4]
[1747386154133,61.38,170.43,170.38,61.4]
[1747386154541,5.8674,170.4,170.38,61.4]
[1747386154837,61.38,170.43,170.38,61.4]
[1747386155027,61.38,170.43,170.34,61.4]
[1747386155435,61.38,170.43,170.35,5.8686]
[1747386155631,61.38,170.43,170.34,61.4]
[1747386156233,122.78,170.43,170.34,61.4]
[1747386156635,122.78,170.43,170.35,5.8686]
[1747386156937,5.8677,170.39,170.34,61.4]
[1747386157138,61.38,170.43,170.36,6.99509416]
[1747386157637,61.38,170.43,170.4,5.8669]
[1747386157833,5.8663,170.43,170.4,5.8669]
[1747386158032,5.8663,170.43,170.38,61.38]
[1747386159231,5.8663,170.43,170.4,5.8668]
[1747386159531,5.8658,170.44,170.38,61.38]
[1747386160139,5.8658,170.44,170.41,5.8667]
[1747386161950,122.72,170.47,170.42,5.8662]
[1747386162236,67.2048,170.47,170.39,6.99509416]
[1747386162440,5.8648,170.47,170.39,6.99509416]
[1747386163238,5.8648,170.47,170.44,5.8655]
[1747386163940,5.8642,170.49,170.42,68.37509416]
[1747386164442,61.32,170.54,170.42,68.37509416]
[1747386164745,61.32,170.54,170.45,6.99509416]
[1747386164940,5.8636,170.51,170.47,5.8646]
[1747386165140,61.32,170.54,170.46,61.38]
[1747386165542,61.32,170.54,170.46,67.2448]
[1747386165746,61.32,170.54,170.46,61.38]
[1747386166139,5.8636,170.51,170.46,67.2449]
[1747386166339,61.32,170.54,170.46,67.2449]
[1747386166841,61.32,170.54,170.46,61.38]
[1747386167241,5.8641,170.49,170.46,61.38]
[1747386167646,61.32,170.54,170.46,61.38]
[1747386167850,5.8644,170.48,170.46,61.38]
[1747386168849,5.8641,170.49,170.46,61.38]
[1747386169042,61.32,170.54,170.48,5.8643]
[1747386169447,5.8633,170.52,170.48,5.8643]
[1747386169648,61.32,170.54,170.48,5.8643]
[1747386169843,5.8634,170.51,170.46,67.2447]
[1747386170044,61.32,170.54,170.46,67.2447]
[1747386170447,5.8644,170.48,170.46,61.38]
[1747386170744,61.32,170.54,170.46,61.38]
[1747386171447,61.32,170.54,170.44,61.28]
[1747386171647,5.8654,170.45,170.44,61.28]
[1747386173346,61.3,170.49,170.44,61.28]
[1747386173743,63.2919,170.52,170.44,61.28]
[1747386174251,2.0119,170.52,170.45,5.8652]
[1747386174449,63.2919,170.52,170.44,61.28]
[1747386174645,5.8638,170.5,170.44,61.28]
[1747386175048,61.28,170.53,170.45,1.889]
[1747386175247,5.8639,170.5,170.46,5.8647]
[1747386175450,5.8639,170.5,170.45,1.889]
[1747386175950,61.28,170.53,170.45,1.889]
[1747386176350,5.8639,170.5,170.46,5.8648]
[1747386176952,5.8639,170.5,170.45,63.169]
[1747386176953,5.8634,170.51,170.45,63.169]
[1747386177156,5.8634,170.51,170.45,70.16409416]
[1747386177353,61.28,170.55,170.45,72.05049416]
[1747386177548,5.8637,170.51,170.45,72.05049416]
[1747386178058,5.8631,170.52,170.48,5.8641]
[1747386178459,61.28,170.55,170.48,5.8641]
[1747386178658,5.8636,170.51,170.47,5.8646]
[1747386178953,61.28,170.55,170.48,61.28]
[1747386179155,5.864,170.49,170.48,61.28]
[1747386179557,61.28,170.55,170.48,61.28]
[1747386180958,5.864,170.49,170.48,61.28]
[1747386181149,61.28,170.55,170.48,61.28]
[1747386182253,5.864,170.49,170.48,61.28]
[1747386182557,61.28,170.55,170.48,61.28]
[1747386183255,5.8639,170.5,170.48,61.28]
[1747386183460,61.28,170.55,170.48,61.28]
[1747386183658,5.864,170.5,170.48,61.28]
[1747386183954,61.28,170.55,170.48,61.28]
[1747386184158,5.864,170.49,170.48,61.28]
[1747386184359,61.28,170.55,170.45,132.2005]
[1747386184653,61.28,170.55,170.45,126.3354]
[1747386184858,61.28,170.55,170.48,5.8643]
[1747386185459,5.8639,170.5,170.47,5.8646]
[1747386185851,5.8639,170.5,170.45,126.3354]
[1747386186159,5.8635,170.51,170.48,5.8642]
[1747386186458,61.28,170.55,170.45,126.3354]
[1747386186756,61.28,170.55,170.47,5.8646]
[1747386187150,5.8639,170.5,170.45,126.3354]
[1747386187558,5.8639,170.5,170.47,5.8644]
[1747386188159,61.28,170.55,170.45,133.33049416]
[1747386188356,63.1517,170.57,170.45,133.33049416]
[1747386188660,61.26,170.56,170.45,133.33049416]
[1747386188855,61.26,170.56,170.49,5.8638]
[1747386189055,61.26,170.56,170.49,61.28]
[1747386189465,5.8623,170.54,170.5,5.8636]
[1747386189662,61.26,170.56,170.5,5.8636]
[1747386189862,61.26,170.56,170.49,61.28]
[1747386190062,5.863,170.52,170.49,67.1438]
[1747386190268,61.24,170.56,170.49,61.28]
[1747386190758,61.24,170.56,170.49,67.144]
[1747386191056,61.24,170.56,170.46,61.28]
[1747386191467,6.99509416,170.55,170.46,61.28]
[1747386191856,11.7247,170.54,170.46,61.28]
[1747386192056,6.99509416,170.52,170.41,1.884]
[1747386192257,63.0699,170.51,170.41,61.28]
[1747386192856,5.8648,170.47,170.44,5.8657]
[1747386193758,5.8651,170.46,170.43,5.8659]
[1747386193963,61.24,170.51,170.41,61.28]
[1747386194461,5.8655,170.45,170.42,5.8664]
[1747386194665,61.24,170.51,170.41,61.28]
[1747386195062,5.8656,170.45,170.41,61.28]
[1747386195668,5.8656,170.45,170.42,5.8663]
[1747386196168,61.24,170.51,170.41,61.28]
[1747386196564,5.8649,170.47,170.41,61.28]
[1747386196760,61.24,170.51,170.43,5.866]
[1747386197264,5.8653,170.46,170.43,5.866]
[1747386198366,61.24,170.51,170.43,5.866]
[1747386198664,61.24,170.51,170.41,61.28]
[1747386198866,5.8661,170.44,170.41,61.28]
[1747386199067,63.2034,170.51,170.41,61.28]
[1747386199068,61.24,170.47,170.41,61.28]
[1747386199467,5.866,170.44,170.41,61.28]
[1747386199664,5.866,170.44,170.41,67.1466]
[1747386199869,61.24,170.47,170.41,61.28]
[1747386200055,5.8653,170.46,170.43,5.8659]
[1747386200765,5.8653,170.46,170.42,5.8663]
[1747386201361,5.8653,170.46,170.43,5.866]
[1747386202667,5.8653,170.46,170.44,5.8657]
[1747386202866,5.8653,170.46,170.41,61.28]
[1747386203368,5.8653,170.46,170.43,5.8659]
[1747386203557,5.8654,170.45,170.43,5.8659]
[1747386205068,5.8654,170.45,170.42,5.8663]
[1747386205274,5.8661,170.43,170.41,61.28]
[1747386205570,61.24,170.47,170.42,5.8663]
[1747386205760,5.8656,170.45,170.42,5.8663]
[1747386205962,61.24,170.47,170.41,61.28]
[1747386206268,61.24,170.47,170.42,5.8664]
[1747386206468,5.8657,170.45,170.42,5.8664]
[1747386206859,5.8657,170.45,170.41,61.28]
[1747386207066,67.1048,170.47,170.41,61.28]
[1747386207266,5.8648,170.47,170.41,61.28]
[1747386207467,67.1043,170.49,170.41,61.28]
[1747386207663,61.28,170.53,170.41,61.28]
[1747386207863,61.24,170.56,170.43,6.99509416]
[1747386208066,61.24,170.55,170.48,5.8641]
[1747386209165,61.24,170.56,170.46,68.23509416]
[1747386209370,61.24,170.55,170.46,68.23509416]
[1747386209671,67.1022,170.55,170.46,68.23509416]
[1747386209870,61.24,170.55,170.46,68.23509416]
[1747386210972,61.24,170.55,170.51,5.8631]
[1747386211171,61.24,170.55,170.5,61.24]
[1747386212071,239.05289149,170.58,170.5,61.24]
[1747386212375,61.22,170.57,170.5,61.24]
[1747386212574,61.22,170.57,170.51,5.8632]
[1747386212870,61.22,170.57,170.5,61.24]
[1747386213173,5.8628,170.53,170.5,67.1036]
[1747386213475,61.22,170.57,170.5,61.24]
[1747386213973,61.22,170.57,170.47,61.24]
[1747386215172,61.22,170.57,170.48,5.8642]
[1747386215673,5.8635,170.51,170.48,5.8642]
[1747386216874,5.8639,170.5,170.47,67.1046]
[1747386217969,5.8635,170.51,170.48,5.8643]
[1747386218274,5.8635,170.51,170.47,61.24]
[1747386218473,5.8635,170.51,170.48,5.8643]
[1747386218874,61.22,170.53,170.47,61.24]
[1747386219074,61.22,170.53,170.51,5.8632]
[1747386219274,240.86179149,170.58,170.47,61.24]
[1747386219577,61.2,170.56,170.51,5.8631]
[1747386219979,5.8624,170.54,170.51,5.8631]
[1747386221077,5.8627,170.53,170.51,5.8631]
[1747386221266,61.2,170.56,170.51,5.8631]
[1747386221878,5.8624,170.54,170.51,5.8631]
[1747386224577,5.8627,170.53,170.5,5.8635]
[1747386225781,5.8627,170.53,170.51,5.8633]
[1747386226378,5.8627,170.53,170.5,5.8635]
[1747386227479,5.8632,170.52,170.49,5.8639]
[1747386227977,5.8632,170.52,170.47,61.24]
[1747386228580,5.8628,170.53,170.47,61.24]
[1747386228876,5.8628,170.53,170.5,5.8635]
[1747386229975,61.2,170.57,170.47,61.24]
[1747386230574,5.8643,170.49,170.47,61.24]
[1747386230972,5.8639,170.5,170.47,67.1045]
[1747386231183,61.18,170.52,170.47,61.24]
[1747386231778,67.0433,170.52,170.49,5.8638]
[1747386231986,61.18,170.52,170.49,5.8638]
[1747386232484,61.18,170.52,170.48,5.8642]
[1747386233181,61.18,170.52,170.47,61.24]
[1747386233686,5.8644,170.48,170.47,61.24]
[1747386233982,61.18,170.52,170.45,5.8652]
[1747386234978,61.18,170.52,170.44,65.0072]
[1747386235182,5.8647,170.48,170.44,65.0072]
[1747386235478,5.8647,170.48,170.45,5.8654]
[1747386235674,5.8647,170.48,170.44,65.0072]
[1747386235989,5.8641,170.49,170.46,5.865]
[1747386236178,61.18,170.52,170.46,5.865]
[1747386236484,5.8643,170.49,170.46,5.865]
[1747386238184,5.8643,170.49,170.44,65.0072]
[1747386238378,61.16,170.52,170.44,65.0072]
[1747386238791,5.8635,170.51,170.48,5.8642]
[1747386238992,5.8635,170.51,170.44,65.0072]
[1747386240097,5.8635,170.51,170.48,5.8642]
[1747386241194,5.8637,170.5,170.47,5.8646]
[1747386241382,61.16,170.52,170.44,65.0072]
[1747386241890,5.8646,170.48,170.44,65.0072]
[1747386242495,5.8646,170.48,170.45,5.8652]
[1747386245012,5.8648,170.47,170.45,5.8652]
[1747386245311,61.16,170.52,170.45,5.8652]
[1747386245708,5.8645,170.48,170.45,5.8652]
[1747386247312,5.8642,170.49,170.46,5.865]
[1747386247705,61.16,170.52,170.46,5.865]
[1747386248306,61.16,170.52,170.44,65.0072]
[1747386248509,5.8639,170.5,170.44,65.0072]
[1747386248913,5.8639,170.5,170.47,5.8645]
[1747386249316,5.8641,170.49,170.47,5.8645]
[1747386249815,5.8639,170.5,170.47,5.8646]
[1747386250016,61.14,170.52,170.47,5.8646]
[1747386250312,61.14,170.52,170.45,5.8652]
[1747386250709,61.14,170.52,170.44,65.0072]
[1747386250904,5.8645,170.48,170.46,5.8648]
[1747386251815,5.864,170.5,170.47,5.8647]
[1747386253115,5.864,170.5,170.48,5.8643]
[1747386253913,5.864,170.5,170.47,5.8646]
[1747386254913,5.864,170.5,170.48,5.8643]
[1747386255715,61.12,170.54,170.5,5.8637]
[1747386255917,61.12,170.54,170.48,61.18]
[1747386256213,300.23289149,170.58,170.48,61.18]
[1747386256515,61.12,170.57,170.48,61.18]
[1747386256718,300.23289149,170.58,170.48,61.18]
[1747386257016,61.12,170.57,170.48,63.0489]
[1747386257411,5.8622,170.55,170.52,5.8627]
[1747386258218,5.8618,170.56,170.48,63.0489]
[1747386258418,239.05289149,170.58,170.54,5.862]
[1747386258612,239.05289149,170.58,170.52,61.18]
[1747386258810,239.05289149,170.58,170.52,68.17509416]
[1747386259610,244.91399149,170.58,170.55,5.8618]
[1747386259811,244.91399149,170.58,170.52,68.17509416]
[1747386260019,5.8618,170.56,170.52,67.0429]
[1747386260504,239.05289149,170.58,170.52,61.18]
[1747386261121,5.8626,170.53,170.52,61.18]
[1747386262320,5.8624,170.54,170.52,61.18]
[1747386263417,5.8624,170.54,170.52,61.1]
[1747386263719,5.8626,170.53,170.52,61.1]
[1747386263916,5.8626,170.53,170.5,4.0025]
[1747386264112,5.8637,170.5,170.49,61.1]
[1747386264309,61.1,170.57,170.49,61.1]
[1747386264721,5.8631,170.52,170.49,66.964]
[1747386265923,5.8631,170.52,170.5,5.8635]
[1747386267422,5.8628,170.53,170.5,5.8635]
[1747386267624,61.1,170.57,170.5,5.8635]
[1747386267825,5.863,170.52,170.5,5.8635]
[1747386268423,5.8627,170.53,170.5,5.8635]
[1747386269422,5.8627,170.53,170.51,5.8633]
[1747386270126,5.8627,170.53,170.5,5.8635]
[1747386270324,5.8627,170.53,170.49,61.1]
[1747386270624,61.1,170.57,170.49,61.1]
[1747386271225,61.1,170.57,170.49,68.09509416]
[1747386271424,61.1,170.57,170.5,1.9626]
[1747386271628,66.9615,170.57,170.54,5.8621]
[1747386271928,239.05289149,170.58,170.5,1.9626]
[1747386272137,244.91399149,170.58,170.55,5.8616]
[1747386273131,244.91399149,170.58,170.56,5.8615]
[1747386273827,244.91399149,170.58,170.55,5.8618]
[1747386275431,5.8613,170.57,170.55,5.8618]
[1747386275619,239.05289149,170.58,170.54,5.8621]
[1747386276026,5.8616,170.57,170.54,5.8621]
[1747386276330,239.05289149,170.58,170.54,5.8621]